[Event "Titled Tuesday Blitz August 08 Early 2023"]
[White "Lamaze, Simon"]
[Black "Zhigalko, Sergei"]
[WhiteFideId "36069264"]
[BlackFideId "13502956"]
[WhiteElo "2753"]
[BlackElo "2921"]
[Result "1-0"]
[Round "4"]
[TimeControl "180+1"]
[Date "2023.08.08"]
[WhiteClock "0:00:06"]
[BlackClock "0:00:00"]
[Board "27"]

1. c4 {[%clk 0:03:00]}  e5 {[%clk 0:02:56]} 2. g3 {[%clk 0:03:00]}  Nf6 {[%clk 0:02:56]} 3. Bg2 {[%clk 0:02:41]}  c6 {[%clk 0:02:55]} 4. d4 {[%clk 0:02:40]}  exd4 {[%clk 0:02:54]} 5. Qxd4 {[%clk 0:02:40]}  Na6 {[%clk 0:02:54]} 6. Nf3 {[%clk 0:02:39]}  Bc5 {[%clk 0:02:54]} 7. Qe5+ {[%clk 0:02:38]}  Be7 {[%clk 0:02:54]} 8. O-O {[%clk 0:02:36]}  O-O {[%clk 0:02:54]} 9. Rd1 {[%clk 0:02:29]}  Re8 {[%clk 0:02:53]} 10. Qf5 {[%clk 0:02:23]}  d6 {[%clk 0:02:28]} 11. Qc2 {[%clk 0:02:11]}  h6 {[%clk 0:02:08]} 12. Nc3 {[%clk 0:02:08]}  Bf8 {[%clk 0:02:05]} 13. e4 {[%clk 0:02:03]}  Qc7 {[%clk 0:02:03]} 14. Nd4 {[%clk 0:02:00]}  Nc5 {[%clk 0:02:00]} 15. b4 {[%clk 0:01:57]}  Ne6 {[%clk 0:01:59]} 16. Nf5 {[%clk 0:01:56]}  a5 {[%clk 0:01:42]} 17. b5 {[%clk 0:01:48]}  Nc5 {[%clk 0:01:42]} 18. b6 {[%clk 0:01:46]}  Qxb6 {[%clk 0:01:37]} 19. Nxd6 {[%clk 0:01:42]}  Bxd6 {[%clk 0:01:38]} 20. Rxd6 {[%clk 0:01:43]}  Be6 {[%clk 0:01:38]} 21. Be3 {[%clk 0:01:41]}  Nfd7 {[%clk 0:01:20]} 22. Rxd7 {[%clk 0:01:33]}  Bxd7 {[%clk 0:01:17]} 23. Na4 {[%clk 0:01:31]}  Qc7 {[%clk 0:01:13]} 24. Nxc5 {[%clk 0:01:30]}  Bc8 {[%clk 0:01:14]} 25. Na4 {[%clk 0:01:29]}  Be6 {[%clk 0:01:11]} 26. Rd1 {[%clk 0:01:25]}  Rad8 {[%clk 0:01:08]} 27. Rxd8 {[%clk 0:01:01]}  Qxd8 {[%clk 0:01:08]} 28. Nc5 {[%clk 0:01:01]}  Bc8 {[%clk 0:01:07]} 29. h3 {[%clk 0:01:00]}  Qd6 {[%clk 0:00:58]} 30. Kh2 {[%clk 0:00:57]}  Rd8 {[%clk 0:00:58]} 31. Nb3 {[%clk 0:00:47]}  Qb4 {[%clk 0:00:56]} 32. Bd2 {[%clk 0:00:45]}  Qa4 {[%clk 0:00:52]} 33. Bxa5 {[%clk 0:00:45]}  Re8 {[%clk 0:00:52]} 34. Bc7 {[%clk 0:00:38]}  Be6 {[%clk 0:00:52]} 35. c5 {[%clk 0:00:38]}  Ra8 {[%clk 0:00:51]} 36. f4 {[%clk 0:00:26]}  Qxa2 {[%clk 0:00:51]} 37. Qxa2 {[%clk 0:00:27]}  Rxa2 {[%clk 0:00:51]} 38. Nd4 {[%clk 0:00:25]}  Bc4 {[%clk 0:00:51]} 39. Kg1 {[%clk 0:00:24]}  Ra1+ {[%clk 0:00:51]} 40. Kf2 {[%clk 0:00:23]}  Ra2+ {[%clk 0:00:52]} 41. Kf3 {[%clk 0:00:23]}  Rd2 {[%clk 0:00:39]} 42. Nf5 {[%clk 0:00:19]}  Rd3+ {[%clk 0:00:26]} 43. Kg4 {[%clk 0:00:18]}  Be6 {[%clk 0:00:26]} 44. Kh4 {[%clk 0:00:16]}  f6 {[%clk 0:00:15]} 45. Bd6 {[%clk 0:00:14]}  Kh7 {[%clk 0:00:11]} 46. Bf1 {[%clk 0:00:05]}  g5+ {[%clk 0:00:06]} 47. fxg5 {[%clk 0:00:05]}  hxg5+ {[%clk 0:00:03]} 48. Kh5 {[%clk 0:00:06]}  Rf3 {[%clk 0:00:02]} 49. Be2 {[%clk 0:00:05]}  Rf2 {[%clk 0:00:02]} 50. Bd3 {[%clk 0:00:04]}  Rf3 {[%clk 0:00:02]} 51. Bc2 {[%clk 0:00:04]}  Rf2 {[%clk 0:00:02]} 52. Nd4 {[%clk 0:00:05]}  Bf7+ {[%clk 0:00:01]} 53. Kg4 {[%clk 0:00:05]}  Kg7 {[%clk 0:00:01]} 54. e5 {[%clk 0:00:05]}  Bg6 {[%clk 0:00:01]} 55. exf6+ {[%clk 0:00:04]}  Kxf6 {[%clk 0:00:02]} 56. Bxg6 {[%clk 0:00:05]}  Kxg6 {[%clk 0:00:02]} 57. Ne6 {[%clk 0:00:05]}  Rd2 {[%clk 0:00:01]} 58. Nd8 {[%clk 0:00:05]}  Rd4+ {[%clk 0:00:02]} 59. Kf3 {[%clk 0:00:05]}  Rb4 {[%clk 0:00:02]} 60. Bc7 {[%clk 0:00:06]}  Kf5 {[%clk 0:00:02]} 61. g4+ {[%clk 0:00:05]}  Kf6 {[%clk 0:00:02]} 62. Bb6 {[%clk 0:00:06]}  Ke7 {[%clk 0:00:02]} 63. Nxb7 {[%clk 0:00:06]}  Rb3+ {[%clk 0:00:01]} 64. Ke4 {[%clk 0:00:06]}  Ke6 {[%clk 0:00:02]} 65. Nd8+ {[%clk 0:00:06]}  Kf6 {[%clk 0:00:02]} 66. Nxc6 {[%clk 0:00:06]}  Rxh3 {[%clk 0:00:03]} 67. Nd4 {[%clk 0:00:05]}  Rc3 {[%clk 0:00:02]} 68. Bd8+ {[%clk 0:00:05]}  Kg6 {[%clk 0:00:02]} 69. c6 {[%clk 0:00:05]}  Kf7 {[%clk 0:00:01]} 70. Bxg5 {[%clk 0:00:05]}  Rc5 {[%clk 0:00:01]} 71. Bf4 {[%clk 0:00:06]}  Kf6 {[%clk 0:00:01]} 72. c7 {[%clk 0:00:07]}  Kg6 {[%clk 0:00:01]} 73. Bd6 {[%clk 0:00:05]}  Rc4 {[%clk 0:00:01]} 74. Kd5 {[%clk 0:00:06]}  Rc1 {[%clk 0:00:01]} 75. Nc6 {[%clk 0:00:06]}  Kg5 {[%clk 0:00:01]} 76. c8=Q {[%clk 0:00:07]}  Rd1+ {[%clk 0:00:01]} 77. Nd4 {[%clk 0:00:06]}  Rc1 {[%clk 0:00:00]} 78. Qxc1+ {[%clk 0:00:06]} 1-0


[Site "https://www.chess.com"]

[Event "Titled Tuesday Blitz August 08 Early 2023"]
[White "Kim, Yoon-Young"]
[Black "Zemlyanskii, Ivan"]
[WhiteFideId "30908779"]
[BlackFideId "24249971"]
[WhiteElo "2736"]
[BlackElo "2912"]
[Result "0-1"]
[Round "4"]
[TimeControl "180+1"]
[Date "2023.08.08"]
[WhiteClock "0:00:00"]
[BlackClock "0:00:13"]
[Board "28"]

1. d4 {[%clk 0:02:51]}  d5 {[%clk 0:02:58]} 2. Nf3 {[%clk 0:02:51]}  Nf6 {[%clk 0:02:58]} 3. c4 {[%clk 0:02:52]}  e6 {[%clk 0:02:58]} 4. g3 {[%clk 0:02:52]}  dxc4 {[%clk 0:02:58]} 5. Bg2 {[%clk 0:02:53]}  Bb4+ {[%clk 0:02:59]} 6. Bd2 {[%clk 0:02:44]}  c5 {[%clk 0:02:58]} 7. O-O {[%clk 0:01:56]}  O-O {[%clk 0:02:58]} 8. Bxb4 {[%clk 0:01:43]}  cxb4 {[%clk 0:02:58]} 9. Qc2 {[%clk 0:01:43]}  a5 {[%clk 0:02:47]} 10. Qxc4 {[%clk 0:01:42]}  b6 {[%clk 0:02:47]} 11. Rc1 {[%clk 0:01:30]}  Ba6 {[%clk 0:02:43]} 12. Qc2 {[%clk 0:01:30]}  Nbd7 {[%clk 0:02:36]} 13. Qd1 {[%clk 0:01:27]}  Bb7 {[%clk 0:02:03]} 14. Nbd2 {[%clk 0:01:27]}  Qe7 {[%clk 0:02:02]} 15. Rc7 {[%clk 0:01:17]}  Rab8 {[%clk 0:01:53]} 16. Rac1 {[%clk 0:00:48]}  Qd6 {[%clk 0:01:31]} 17. e3 {[%clk 0:00:36]}  Nc5 {[%clk 0:00:58]} 18. Rxb7 {[%clk 0:00:37]}  Nxb7 {[%clk 0:00:59]} 19. Ne5 {[%clk 0:00:37]}  Nd8 {[%clk 0:00:54]} 20. Ndc4 {[%clk 0:00:36]}  Qe7 {[%clk 0:00:51]} 21. Nd2 {[%clk 0:00:36]}  Nd5 {[%clk 0:00:48]} 22. e4 {[%clk 0:00:35]}  Nf6 {[%clk 0:00:42]} 23. Rc4 {[%clk 0:00:29]}  Qd6 {[%clk 0:00:38]} 24. Nd3 {[%clk 0:00:26]}  Qe7 {[%clk 0:00:28]} 25. Qc2 {[%clk 0:00:27]}  Nb7 {[%clk 0:00:18]} 26. Rc7 {[%clk 0:00:15]}  Qd8 {[%clk 0:00:18]} 27. Ne5 {[%clk 0:00:08]}  Rc8 {[%clk 0:00:17]} 28. Rxc8 {[%clk 0:00:08]}  Qxc8 {[%clk 0:00:18]} 29. Nc6 {[%clk 0:00:09]}  Qc7 {[%clk 0:00:16]} 30. d5 {[%clk 0:00:08]}  Rc8 {[%clk 0:00:12]} 31. h3 {[%clk 0:00:07]}  Nd8 {[%clk 0:00:11]} 32. Nc4 {[%clk 0:00:04]}  Nxc6 {[%clk 0:00:12]} 33. dxc6 {[%clk 0:00:05]}  Qxc6 {[%clk 0:00:13]} 34. b3 {[%clk 0:00:05]}  b5 {[%clk 0:00:12]} 35. e5 {[%clk 0:00:00]}  Nd5 {[%clk 0:00:13]} 0-1


[Site "https://www.chess.com"]

[Event "Titled Tuesday Blitz August 08 Early 2023"]
[White "Ioannidis, Evgenios"]
[Black "Vokhidov, Shamsiddin"]
[WhiteFideId "4229274"]
[BlackFideId "14204223"]
[WhiteElo "2684"]
[BlackElo "2896"]
[Result "0-1"]
[Round "4"]
[TimeControl "180+1"]
[Date "2023.08.08"]
[WhiteClock "0:00:08"]
[BlackClock "0:00:12"]
[Board "29"]

1. d4 {[%clk 0:03:00]}  Nf6 {[%clk 0:03:00]} 2. c4 {[%clk 0:03:00]}  e6 {[%clk 0:03:00]} 3. Nc3 {[%clk 0:02:59]}  Bb4 {[%clk 0:03:00]} 4. e3 {[%clk 0:02:59]}  O-O {[%clk 0:02:59]} 5. Bd2 {[%clk 0:02:59]}  b6 {[%clk 0:02:59]} 6. Nf3 {[%clk 0:02:55]}  Bb7 {[%clk 0:02:58]} 7. Bd3 {[%clk 0:02:55]}  d5 {[%clk 0:02:58]} 8. cxd5 {[%clk 0:02:55]}  exd5 {[%clk 0:02:59]} 9. Rc1 {[%clk 0:02:55]}  a6 {[%clk 0:02:58]} 10. Ne5 {[%clk 0:02:54]}  Re8 {[%clk 0:02:59]} 11. f4 {[%clk 0:02:53]}  Bf8 {[%clk 0:02:58]} 12. Qf3 {[%clk 0:02:51]}  c5 {[%clk 0:02:57]} 13. O-O {[%clk 0:02:46]}  Nc6 {[%clk 0:02:54]} 14. Be1 {[%clk 0:02:43]}  cxd4 {[%clk 0:02:53]} 15. Nxc6 {[%clk 0:02:43]}  Bxc6 {[%clk 0:02:52]} 16. exd4 {[%clk 0:02:44]}  Qd7 {[%clk 0:02:46]} 17. Bh4 {[%clk 0:02:21]}  Ne4 {[%clk 0:02:45]} 18. f5 {[%clk 0:02:21]}  Nd2 {[%clk 0:02:45]} 19. Qh5 {[%clk 0:02:11]}  Nxf1 {[%clk 0:02:44]} 20. Rxf1 {[%clk 0:02:11]}  Re3 {[%clk 0:02:42]} 21. Bb1 {[%clk 0:02:05]}  Rae8 {[%clk 0:02:41]} 22. Bf2 {[%clk 0:01:51]}  R3e7 {[%clk 0:02:18]} 23. f6 {[%clk 0:01:46]}  g6 {[%clk 0:02:18]} 24. Qg5 {[%clk 0:01:43]}  Re6 {[%clk 0:01:53]} 25. Bf5 {[%clk 0:01:43]}  Qd8 {[%clk 0:01:47]} 26. Bxe6 {[%clk 0:01:34]}  Rxe6 {[%clk 0:01:47]} 27. Bg3 {[%clk 0:01:24]}  h6 {[%clk 0:01:47]} 28. Qf4 {[%clk 0:01:24]}  b5 {[%clk 0:01:44]} 29. a3 {[%clk 0:01:21]}  a5 {[%clk 0:01:40]} 30. b4 {[%clk 0:00:57]}  axb4 {[%clk 0:01:36]} 31. axb4 {[%clk 0:00:58]}  Bxb4 {[%clk 0:01:19]} 32. Qxh6 {[%clk 0:00:57]}  Bf8 {[%clk 0:01:18]} 33. Qg5 {[%clk 0:00:47]}  b4 {[%clk 0:01:16]} 34. Nd1 {[%clk 0:00:44]}  Bb5 {[%clk 0:01:09]} 35. Rf4 {[%clk 0:00:41]}  b3 {[%clk 0:00:58]} 36. Nb2 {[%clk 0:00:29]}  Re2 {[%clk 0:00:52]} 37. h4 {[%clk 0:00:25]}  Rxb2 {[%clk 0:00:45]} 38. h5 {[%clk 0:00:25]}  Bd3 {[%clk 0:00:45]} 39. hxg6 {[%clk 0:00:25]}  Bxg6 {[%clk 0:00:44]} 40. Rh4 {[%clk 0:00:18]}  Rb1+ {[%clk 0:00:42]} 41. Kh2 {[%clk 0:00:18]}  b2 {[%clk 0:00:40]} 42. Be5 {[%clk 0:00:18]}  Rh1+ {[%clk 0:00:33]} 43. Kxh1 {[%clk 0:00:18]}  b1=Q+ {[%clk 0:00:33]} 44. Kh2 {[%clk 0:00:19]}  Qf5 {[%clk 0:00:30]} 45. Qg3 {[%clk 0:00:20]}  Bd6 {[%clk 0:00:17]} 46. Rg4 {[%clk 0:00:17]}  Qfxf6 {[%clk 0:00:13]} 47. Kh1 {[%clk 0:00:10]}  Bxe5 {[%clk 0:00:13]} 48. dxe5 {[%clk 0:00:11]}  Qg7 {[%clk 0:00:13]} 49. Qf4 {[%clk 0:00:10]}  Qh7+ {[%clk 0:00:12]} 50. Kg1 {[%clk 0:00:08]}  Qb6+ {[%clk 0:00:12]} 0-1


[Site "https://www.chess.com"]

[Event "Titled Tuesday Blitz August 08 Early 2023"]
[White "Isanzhulov, Arystan"]
[Black "Aaditya Dhingra"]
[WhiteFideId "13711644"]
[BlackFideId "25678191"]
[WhiteElo "2866"]
[BlackElo "2674"]
[Result "1-0"]
[Round "4"]
[TimeControl "180+1"]
[Date "2023.08.08"]
[WhiteClock "0:00:21"]
[BlackClock "0:00:00"]
[Board "32"]

1. a3 {[%clk 0:03:00]}  e5 {[%clk 0:02:58]} 2. g3 {[%clk 0:02:58]}  Nf6 {[%clk 0:02:57]} 3. Bg2 {[%clk 0:02:57]}  d5 {[%clk 0:02:58]} 4. c3 {[%clk 0:02:55]}  Bd6 {[%clk 0:02:54]} 5. d4 {[%clk 0:02:54]}  e4 {[%clk 0:02:54]} 6. h4 {[%clk 0:02:54]}  Ng4 {[%clk 0:02:48]} 7. Nh3 {[%clk 0:02:51]}  e3 {[%clk 0:02:47]} 8. Qd3 {[%clk 0:02:30]}  Qe7 {[%clk 0:02:21]} 9. Bxe3 {[%clk 0:02:26]}  Nxe3 {[%clk 0:02:20]} 10. Qxe3 {[%clk 0:02:27]}  Qxe3 {[%clk 0:02:18]} 11. fxe3 {[%clk 0:02:28]}  Bxg3+ {[%clk 0:02:18]} 12. Kd2 {[%clk 0:02:28]}  c6 {[%clk 0:02:17]} 13. a4 {[%clk 0:02:28]}  Nd7 {[%clk 0:02:15]} 14. Nf4 {[%clk 0:02:21]}  Nf6 {[%clk 0:02:14]} 15. Na3 {[%clk 0:02:17]}  O-O {[%clk 0:02:12]} 16. Bf3 {[%clk 0:02:12]}  Re8 {[%clk 0:02:06]} 17. Nc2 {[%clk 0:02:09]}  Bf5 {[%clk 0:02:03]} 18. Rag1 {[%clk 0:02:04]}  Bf2 {[%clk 0:01:52]} 19. Rg2 {[%clk 0:02:03]}  Bxc2 {[%clk 0:01:38]} 20. Kxc2 {[%clk 0:02:03]}  Bxe3 {[%clk 0:01:37]} 21. Nh5 {[%clk 0:02:03]}  Nxh5 {[%clk 0:01:34]} 22. Bxh5 {[%clk 0:02:04]}  g6 {[%clk 0:01:34]} 23. Bg4 {[%clk 0:02:04]}  Kg7 {[%clk 0:01:33]} 24. h5 {[%clk 0:02:04]}  Re7 {[%clk 0:01:28]} 25. Rgh2 {[%clk 0:01:53]}  f5 {[%clk 0:01:16]} 26. Bh3 {[%clk 0:01:19]}  Kf6 {[%clk 0:01:15]} 27. Rf1 {[%clk 0:01:18]}  Rae8 {[%clk 0:01:11]} 28. Bg4 {[%clk 0:01:16]}  Bg5 {[%clk 0:01:08]} 29. Rg2 {[%clk 0:01:09]}  Re4 {[%clk 0:01:02]} 30. Bf3 {[%clk 0:01:06]}  Rh4 {[%clk 0:00:52]} 31. hxg6 {[%clk 0:01:02]}  Kxg6 {[%clk 0:00:51]} 32. a5 {[%clk 0:01:02]}  a6 {[%clk 0:00:51]} 33. Kb3 {[%clk 0:01:01]}  Kf6 {[%clk 0:00:48]} 34. Bg4 {[%clk 0:00:56]}  f4 {[%clk 0:00:44]} 35. Kb4 {[%clk 0:00:55]}  h5 {[%clk 0:00:42]} 36. Bd7 {[%clk 0:00:42]}  Re7 {[%clk 0:00:40]} 37. Bc8 {[%clk 0:00:42]}  Rc7 {[%clk 0:00:36]} 38. Rfg1 {[%clk 0:00:43]}  Rxc8 {[%clk 0:00:17]} 39. Rxg5 {[%clk 0:00:43]}  Rf8 {[%clk 0:00:17]} 40. Kc5 {[%clk 0:00:40]}  Rh2 {[%clk 0:00:14]} 41. Rg6+ {[%clk 0:00:39]}  Ke7 {[%clk 0:00:13]} 42. Re1 {[%clk 0:00:33]}  h4 {[%clk 0:00:12]} 43. Kb6 {[%clk 0:00:33]}  h3 {[%clk 0:00:12]} 44. Rh6 {[%clk 0:00:33]}  Rf6 {[%clk 0:00:06]} 45. Rh4 {[%clk 0:00:32]}  Ke6 {[%clk 0:00:06]} 46. Kxb7 {[%clk 0:00:31]}  Kf5 {[%clk 0:00:06]} 47. Rh8 {[%clk 0:00:24]}  Re6 {[%clk 0:00:03]} 48. Kxa6 {[%clk 0:00:22]}  Rexe2 {[%clk 0:00:00]} 49. Rf1 {[%clk 0:00:21]} 1-0


[Site "https://www.chess.com"]

[Event "Titled Tuesday Blitz August 08 Early 2023"]
[White "Molina, Roberto Junio Brito"]
[Black "Weishaeutel, Moritz"]
[WhiteFideId "2109450"]
[BlackFideId "12967300"]
[WhiteElo "2856"]
[BlackElo "2650"]
[Result "1-0"]
[Round "4"]
[TimeControl "180+1"]
[Date "2023.08.08"]
[WhiteClock "0:00:16"]
[BlackClock "0:00:02"]
[Board "35"]

1. d4 {[%clk 0:03:00]}  Nf6 {[%clk 0:03:00]} 2. c4 {[%clk 0:02:59]}  c5 {[%clk 0:03:00]} 3. d5 {[%clk 0:02:59]}  b5 {[%clk 0:03:01]} 4. cxb5 {[%clk 0:03:00]}  a6 {[%clk 0:03:02]} 5. b6 {[%clk 0:03:00]}  Qxb6 {[%clk 0:03:01]} 6. Nc3 {[%clk 0:03:00]}  d6 {[%clk 0:03:01]} 7. e4 {[%clk 0:03:00]}  g6 {[%clk 0:03:02]} 8. Nf3 {[%clk 0:02:59]}  Bg7 {[%clk 0:03:03]} 9. Be2 {[%clk 0:02:59]}  O-O {[%clk 0:03:03]} 10. O-O {[%clk 0:02:59]}  Nbd7 {[%clk 0:03:04]} 11. Nd2 {[%clk 0:02:57]}  Qc7 {[%clk 0:03:05]} 12. a4 {[%clk 0:02:57]}  Bb7 {[%clk 0:03:05]} 13. a5 {[%clk 0:02:56]}  e6 {[%clk 0:03:05]} 14. Nc4 {[%clk 0:02:51]}  Nxe4 {[%clk 0:03:06]} 15. Nxe4 {[%clk 0:02:47]}  exd5 {[%clk 0:03:07]} 16. Nexd6 {[%clk 0:02:45]}  Bc6 {[%clk 0:03:07]} 17. Bf3 {[%clk 0:02:40]}  dxc4 {[%clk 0:03:03]} 18. Nxc4 {[%clk 0:02:36]}  Rab8 {[%clk 0:02:57]} 19. Bxc6 {[%clk 0:02:35]}  Qxc6 {[%clk 0:02:57]} 20. Qc2 {[%clk 0:02:34]}  Ne5 {[%clk 0:02:53]} 21. Nxe5 {[%clk 0:02:29]}  Bxe5 {[%clk 0:02:54]} 22. Ra3 {[%clk 0:02:25]}  Rfe8 {[%clk 0:02:50]} 23. Re3 {[%clk 0:02:08]}  Bd4 {[%clk 0:02:42]} 24. Rd3 {[%clk 0:02:07]}  Qb5 {[%clk 0:02:31]} 25. b3 {[%clk 0:02:06]}  Qxa5 {[%clk 0:02:29]} 26. Bd2 {[%clk 0:02:04]}  Qb5 {[%clk 0:02:29]} 27. Rd1 {[%clk 0:01:51]}  Re2 {[%clk 0:02:26]} 28. Rf3 {[%clk 0:01:47]}  Rbe8 {[%clk 0:02:20]} 29. g3 {[%clk 0:01:37]}  Qb7 {[%clk 0:01:46]} 30. Qd3 {[%clk 0:01:35]}  Qe7 {[%clk 0:01:07]} 31. Be3 {[%clk 0:01:24]}  Rxe3 {[%clk 0:00:50]} 32. fxe3 {[%clk 0:01:24]}  Bxe3+ {[%clk 0:00:51]} 33. Kg2 {[%clk 0:01:24]}  Bd4 {[%clk 0:00:51]} 34. Qxa6 {[%clk 0:01:20]}  Qe4 {[%clk 0:00:38]} 35. Qd3 {[%clk 0:01:15]}  Qd5 {[%clk 0:00:36]} 36. Qc4 {[%clk 0:01:13]}  Qxc4 {[%clk 0:00:33]} 37. bxc4 {[%clk 0:01:14]}  Re2+ {[%clk 0:00:32]} 38. Kh3 {[%clk 0:01:13]}  Rc2 {[%clk 0:00:32]} 39. Re1 {[%clk 0:01:10]}  Rxc4 {[%clk 0:00:28]} 40. Re8+ {[%clk 0:01:10]}  Kg7 {[%clk 0:00:27]} 41. Re7 {[%clk 0:01:11]}  Bf6 {[%clk 0:00:27]} 42. Rc7 {[%clk 0:01:09]}  Rc2 {[%clk 0:00:22]} 43. Ra3 {[%clk 0:01:07]}  Bd4 {[%clk 0:00:19]} 44. Raa7 {[%clk 0:01:03]}  Rf2 {[%clk 0:00:19]} 45. Re7 {[%clk 0:00:58]}  c4 {[%clk 0:00:18]} 46. Rac7 {[%clk 0:00:58]}  c3 {[%clk 0:00:18]} 47. Re4 {[%clk 0:00:58]}  Bf6 {[%clk 0:00:17]} 48. Rc6 {[%clk 0:00:57]}  h5 {[%clk 0:00:12]} 49. Rf4 {[%clk 0:00:56]}  Rxf4 {[%clk 0:00:11]} 50. gxf4 {[%clk 0:00:57]}  Bd4 {[%clk 0:00:10]} 51. Kg3 {[%clk 0:00:56]}  f6 {[%clk 0:00:11]} 52. Kf3 {[%clk 0:00:55]}  g5 {[%clk 0:00:11]} 53. Ke4 {[%clk 0:00:54]}  Bg1 {[%clk 0:00:07]} 54. h3 {[%clk 0:00:52]}  gxf4 {[%clk 0:00:05]} 55. Rxc3 {[%clk 0:00:51]}  Be3 {[%clk 0:00:06]} 56. Kf5 {[%clk 0:00:50]}  Kf7 {[%clk 0:00:04]} 57. Rc7+ {[%clk 0:00:50]}  Ke8 {[%clk 0:00:05]} 58. Ke6 {[%clk 0:00:48]}  Kd8 {[%clk 0:00:05]} 59. Rf7 {[%clk 0:00:48]}  f3 {[%clk 0:00:04]} 60. Rxf6 {[%clk 0:00:48]}  f2 {[%clk 0:00:05]} 61. Kd6 {[%clk 0:00:46]}  Ke8 {[%clk 0:00:04]} 62. Rf3 {[%clk 0:00:46]}  Bd4 {[%clk 0:00:03]} 63. Ke6 {[%clk 0:00:46]}  h4 {[%clk 0:00:03]} 64. Kf5 {[%clk 0:00:44]}  Ke7 {[%clk 0:00:03]} 65. Kg4 {[%clk 0:00:43]}  Ke6 {[%clk 0:00:03]} 66. Kxh4 {[%clk 0:00:43]}  Ke5 {[%clk 0:00:04]} 67. Kg3 {[%clk 0:00:44]}  Ke4 {[%clk 0:00:04]} 68. Kg2 {[%clk 0:00:44]}  Be3 {[%clk 0:00:04]} 69. h4 {[%clk 0:00:42]}  Bd4 {[%clk 0:00:05]} 70. h5 {[%clk 0:00:43]}  Be3 {[%clk 0:00:05]} 71. Rf7 {[%clk 0:00:40]}  Ke5 {[%clk 0:00:05]} 72. Kf1 {[%clk 0:00:38]}  Ke6 {[%clk 0:00:05]} 73. Rf3 {[%clk 0:00:38]}  Bg5 {[%clk 0:00:04]} 74. Kxf2 {[%clk 0:00:38]}  Bf6 {[%clk 0:00:05]} 75. Kg3 {[%clk 0:00:38]}  Kf7 {[%clk 0:00:06]} 76. Kg4 {[%clk 0:00:38]}  Kg7 {[%clk 0:00:06]} 77. Rb3 {[%clk 0:00:37]}  Kh6 {[%clk 0:00:06]} 78. Rb6 {[%clk 0:00:37]}  Kg7 {[%clk 0:00:07]} 79. Kf5 {[%clk 0:00:35]}  Bd4 {[%clk 0:00:08]} 80. Rg6+ {[%clk 0:00:33]}  Kh7 {[%clk 0:00:08]} 81. Kf4 {[%clk 0:00:33]}  Bb2 {[%clk 0:00:07]} 82. Rc6 {[%clk 0:00:31]}  Bg7 {[%clk 0:00:05]} 83. Kg5 {[%clk 0:00:31]}  Bb2 {[%clk 0:00:05]} 84. Rc7+ {[%clk 0:00:31]}  Kg8 {[%clk 0:00:03]} 85. Kg6 {[%clk 0:00:31]}  Ba3 {[%clk 0:00:03]} 86. Rc8+ {[%clk 0:00:30]}  Bf8 {[%clk 0:00:02]} 87. h6 {[%clk 0:00:16]} 1-0


[Site "https://www.chess.com"]

[Event "Titled Tuesday Blitz August 08 Early 2023"]
[White "Ibarra Jerez, Jose Carlos"]
[Black "Moral Garcia, Serafin"]
[WhiteFideId "2226332"]
[BlackFideId "2201925"]
[WhiteElo "2839"]
[BlackElo "2558"]
[Result "1-0"]
[Round "4"]
[TimeControl "180+1"]
[Date "2023.08.08"]
[WhiteClock "0:00:43"]
[BlackClock "0:00:02"]
[Board "37"]

1. e4 {[%clk 0:03:00]}  e5 {[%clk 0:02:59]} 2. Nf3 {[%clk 0:03:01]}  Nf6 {[%clk 0:02:58]} 3. Nc3 {[%clk 0:03:01]}  Nc6 {[%clk 0:02:58]} 4. h3 {[%clk 0:03:02]}  g6 {[%clk 0:02:57]} 5. d4 {[%clk 0:03:01]}  exd4 {[%clk 0:02:57]} 6. Nxd4 {[%clk 0:03:02]}  Bg7 {[%clk 0:02:57]} 7. Nxc6 {[%clk 0:03:02]}  bxc6 {[%clk 0:02:57]} 8. Bd3 {[%clk 0:03:02]}  O-O {[%clk 0:02:55]} 9. O-O {[%clk 0:03:01]}  d5 {[%clk 0:02:53]} 10. Bg5 {[%clk 0:03:00]}  Qd6 {[%clk 0:02:45]} 11. Qf3 {[%clk 0:02:57]}  dxe4 {[%clk 0:02:34]} 12. Nxe4 {[%clk 0:02:57]}  Nxe4 {[%clk 0:02:34]} 13. Bxe4 {[%clk 0:02:57]}  Bxb2 {[%clk 0:02:35]} 14. Rad1 {[%clk 0:02:56]}  Qa3 {[%clk 0:02:24]} 15. Qxa3 {[%clk 0:02:38]}  Bxa3 {[%clk 0:02:24]} 16. Bh6 {[%clk 0:02:38]}  Ba6 {[%clk 0:02:20]} 17. Bxf8 {[%clk 0:02:38]}  Rxf8 {[%clk 0:02:09]} 18. Rfe1 {[%clk 0:02:37]}  Bb5 {[%clk 0:02:09]} 19. Bd3 {[%clk 0:02:31]}  Bd6 {[%clk 0:02:06]} 20. c4 {[%clk 0:02:25]}  Ba4 {[%clk 0:01:58]} 21. Rb1 {[%clk 0:02:25]}  Rd8 {[%clk 0:01:55]} 22. Be4 {[%clk 0:02:21]}  Bc5 {[%clk 0:01:51]} 23. Re2 {[%clk 0:02:15]}  Rd4 {[%clk 0:01:48]} 24. Bc2 {[%clk 0:01:53]}  Rxc4 {[%clk 0:01:40]} 25. Bxa4 {[%clk 0:01:54]}  Rxa4 {[%clk 0:01:40]} 26. Rc1 {[%clk 0:01:53]}  Ra5 {[%clk 0:01:33]} 27. Kf1 {[%clk 0:01:53]}  Bd6 {[%clk 0:01:20]} 28. Rxc6 {[%clk 0:01:51]}  Kg7 {[%clk 0:01:16]} 29. g3 {[%clk 0:01:49]}  h5 {[%clk 0:01:16]} 30. h4 {[%clk 0:01:49]}  Rb5 {[%clk 0:01:09]} 31. Kg2 {[%clk 0:01:48]}  a5 {[%clk 0:01:08]} 32. Rc4 {[%clk 0:01:46]}  Kf6 {[%clk 0:01:02]} 33. Re3 {[%clk 0:01:46]}  Kg7 {[%clk 0:00:51]} 34. Rf3 {[%clk 0:01:46]}  Rd5 {[%clk 0:00:48]} 35. Rc2 {[%clk 0:01:41]}  Rb5 {[%clk 0:00:48]} 36. Re2 {[%clk 0:01:41]}  Kf8 {[%clk 0:00:27]} 37. Re4 {[%clk 0:01:39]}  Rc5 {[%clk 0:00:24]} 38. Rfe3 {[%clk 0:01:35]}  Kg7 {[%clk 0:00:24]} 39. Re8 {[%clk 0:01:35]}  Rc4 {[%clk 0:00:23]} 40. R8e4 {[%clk 0:01:23]}  Rc5 {[%clk 0:00:22]} 41. Rf3 {[%clk 0:01:23]}  Rc2 {[%clk 0:00:20]} 42. Ra4 {[%clk 0:01:21]}  Bb4 {[%clk 0:00:16]} 43. a3 {[%clk 0:01:16]}  Ra2 {[%clk 0:00:15]} 44. Rd3 {[%clk 0:01:10]}  Kf8 {[%clk 0:00:14]} 45. Kf3 {[%clk 0:01:10]}  Kg7 {[%clk 0:00:14]} 46. Ke4 {[%clk 0:01:08]}  Bd6 {[%clk 0:00:13]} 47. f4 {[%clk 0:01:03]}  f5+ {[%clk 0:00:10]} 48. Kd5 {[%clk 0:01:03]}  Kf6 {[%clk 0:00:08]} 49. Rxa5 {[%clk 0:01:02]}  Re2 {[%clk 0:00:08]} 50. Kc4 {[%clk 0:00:57]}  Rg2 {[%clk 0:00:07]} 51. Kb3 {[%clk 0:00:55]}  Ke6 {[%clk 0:00:07]} 52. Ra8 {[%clk 0:00:53]}  Kf6 {[%clk 0:00:08]} 53. Re8 {[%clk 0:00:50]}  Rg1 {[%clk 0:00:07]} 54. Re2 {[%clk 0:00:49]}  Rb1+ {[%clk 0:00:03]} 55. Rb2 {[%clk 0:00:50]}  Re1 {[%clk 0:00:04]} 56. a4 {[%clk 0:00:47]}  Ra1 {[%clk 0:00:05]} 57. Ra2 {[%clk 0:00:47]}  Rb1+ {[%clk 0:00:04]} 58. Kc2 {[%clk 0:00:44]}  Rb4 {[%clk 0:00:02]} 59. a5 {[%clk 0:00:43]} 1-0


[Site "https://www.chess.com"]